bitfinex/quotes_SOLUSD_20250626
["timestamp","ask_amount","ask_price","bid_price","bid_amount"]
[1750977498108,25.8509207,139.64,139.58,6.00411335]
[1750977498328,19.07613357,139.63,139.56,6.00411335]
[1750977498532,19.07613357,139.63,139.55,6.00411335]
[1750977498859,19.07613357,139.63,139.56,6.00411335]
[1750977499532,18.64964886,139.61,139.56,6.00411335]
[1750977501429,25.81283097,139.61,139.56,6.00411335]
[1750977502132,25.81283097,139.61,139.57,6.00411335]
[1750977502511,0.42648471,139.63,139.58,6.00411335]
[1750977502512,7.1623745,139.62,139.58,6.00411335]
[1750977503116,25.85116647,139.64,139.59,6.00411335]
[1750977503429,25.85116647,139.64,139.6,6.00411335]
[1750977505910,25.85116647,139.64,139.56,5.79890477]
[1750977506109,25.85116647,139.64,139.6,6.00411335]
[1750977507935,25.85116647,139.64,139.56,89.4]
[1750977508127,25.85116647,139.64,139.59,6.00411335]
[1750977510741,7.20151761,139.64,139.6,6.00411335]
[1750977513727,7.20151761,139.64,139.59,6.00411335]
[1750977519241,7.20151761,139.64,139.58,6.00411335]
[1750977519433,18.64964886,139.63,139.57,6.00411335]
[1750977519751,18.64964886,139.63,139.59,6.00411335]
[1750977520349,7.20151761,139.64,139.59,6.00411335]
[1750977520852,7.20151761,139.64,139.6,6.00411335]
[1750977526032,0.04,139.64,139.61,6.00411335]
[1750977526239,0.04,139.64,139.63,6.00411335]
[1750977527056,0.04,139.64,139.62,6.00411335]
[1750977527355,0.04,139.64,139.61,6.00411335]
[1750977528534,0.04,139.64,139.62,6.00411335]
[1750977534556,0.04,139.64,139.63,6.00411335]
[1750977536737,0.04,139.64,139.59,1.505]
[1750977536939,0.04,139.64,139.61,6.00411335]
[1750977537151,0.04,139.64,139.62,6.00411335]
[1750977538034,0.04,139.64,139.61,6.00411335]
[1750977538857,0.04,139.64,139.6,6.00411335]
[1750977539744,0.04,139.64,139.59,95.40411335]
[1750977539948,0.04,139.64,139.59,6.00411335]
[1750977540334,0.04,139.64,139.6,6.00411335]
[1750977540745,18.68964886,139.64,139.59,6.00411335]
[1750977541568,19.07613357,139.6,139.51,1.5308]
[1750977541757,18.79181043,139.6,139.51,1.5308]
[1750977542439,7.16383695,139.59,139.51,1.5308]
[1750977543971,7.16383695,139.59,139.53,6.00411335]
[1750977544733,7.16383695,139.59,139.52,6.00411335]
[1750977545548,18.64964886,139.58,139.51,7.53491335]
[1750977545948,7.1648635,139.57,139.51,6.00411335]
[1750977546553,18.64964886,139.56,139.49,12.46411335]
[1750977547560,7.16589036,139.55,139.49,12.46411335]
[1750977548370,7.16589036,139.55,139.49,6.46]
[1750977548557,8.79279036,139.55,139.49,6.46]
[1750977549052,8.79279036,139.55,139.48,6.02411335]
[1750977549850,8.79279036,139.55,139.49,6.00411335]
[1750977550273,8.79279036,139.55,139.5,6.00411335]
[1750977551171,8.79279036,139.55,139.48,0.02]
[1750977551172,1.6269,139.55,139.51,6.00411335]
[1750977551352,7.16544432,139.56,139.52,6.00411335]
[1750977551675,7.16544432,139.56,139.51,6.00411335]
[1750977553253,13.71178898,139.57,139.52,6.00411335]
[1750977553454,7.16508898,139.57,139.53,6.00411335]
[1750977553759,7.16435019,139.58,139.53,6.00411335]
[1750977556172,7.16435019,139.58,139.52,6.00411335]
[1750977557183,7.16435019,139.58,139.53,6.00411335]
[1750977560189,7.16435019,139.58,139.54,6.00411335]
[1750977561487,7.16435019,139.58,139.5,89.82648471]
[1750977561678,7.16435019,139.58,139.53,6.00411335]
[1750977567088,7.16435019,139.58,139.54,6.00411335]
[1750977571904,7.16435019,139.58,139.53,6.00411335]
[1750977573598,7.16435019,139.58,139.54,6.00411335]
[1750977576091,15.27787644,139.59,139.55,6.00411335]
[1750977576288,1.5974,139.62,139.58,6.00411335]
[1750977576489,1.5974,139.62,139.59,6.00411335]
[1750977576891,8.75991278,139.62,139.59,6.00411335]
[1750977577285,7.16251278,139.62,139.59,6.00411335]
[1750977577480,7.16202723,139.63,139.6,6.00411335]
[1750977577684,7.20150099,139.64,139.61,6.00411335]
[1750977578308,7.20150099,139.64,139.56,1.5835]
[1750977578309,7.20150099,139.64,139.6,6.00411335]
[1750977580106,7.20150099,139.64,139.57,6.00411335]
[1750977580107,18.64964886,139.63,139.57,6.00411335]
[1750977580607,18.64964886,139.63,139.59,6.00411335]
[1750977580788,25.10468059,139.64,139.59,6.00411335]
[1750977581112,7.20150099,139.64,139.6,6.00411335]
[1750977583497,7.20150099,139.64,139.61,6.00411335]
[1750977586312,7.20150099,139.64,139.6,6.00411335]
[1750977586899,7.20150099,139.64,139.59,6.00411335]
[1750977588011,7.20150099,139.64,139.56,89.4]
[1750977588219,7.20150099,139.64,139.58,6.00411335]
[1750977588409,18.64964886,139.63,139.56,95.40411335]
[1750977588801,18.64964886,139.63,139.57,6.00411335]
[1750977589436,18.64964886,139.63,139.56,89.4]
[1750977589734,18.64964886,139.63,139.57,6.00411335]
[1750977590325,7.16229766,139.62,139.57,6.00411335]
[1750977590716,7.16229766,139.62,139.56,95.40411335]
[1750977591128,7.16229766,139.62,139.57,6.00411335]
[1750977596641,7.16229766,139.62,139.58,6.00411335]
[1750977596812,7.16229766,139.62,139.57,6.00411335]
[1750977598738,23.65181375,139.64,139.57,6.00411335]
[1750977598739,25.81143357,139.63,139.57,6.00411335]
[1750977599710,25.81143357,139.63,139.58,6.00411335]
[1750977601541,6.3295,139.61,139.53,1.5835]
[1750977601844,18.64964886,139.6,139.52,89.4]
[1750977602138,18.64964886,139.6,139.52,95.40411335]
[1750977602619,18.64964886,139.6,139.53,6.00411335]
[1750977602814,7.16383695,139.59,139.54,6.00411335]
[1750977603444,7.16383695,139.59,139.52,89.4]
[1750977603654,7.16383695,139.59,139.54,6.00411335]
[1750977606337,18.64964886,139.58,139.52,89.4]
[1750977606642,18.64964886,139.58,139.52,6.00411335]
[1750977607323,7.1648635,139.57,139.52,6.00411335]
[1750977609154,7.1648635,139.57,139.5,26.0]
[1750977609328,7.1648635,139.57,139.52,6.00411335]
[1750977609529,7.1648635,139.57,139.53,6.00411335]
[1750977609926,7.1648635,139.57,139.5,26.0]
[1750977610250,7.1648635,139.57,139.52,6.00411335]
[1750977611044,18.64964886,139.58,139.5,26.0]
[1750977611045,7.16450843,139.58,139.53,6.00411335]
[1750977611226,7.16450843,139.58,139.54,6.00411335]
[1750977611425,7.16383695,139.59,139.54,6.00411335]
[1750977611842,7.16383695,139.59,139.5,26.0]
[1750977612039,7.16383695,139.59,139.55,6.00411335]
[1750977612334,7.16356801,139.6,139.55,6.00411335]
[1750977615146,7.16356801,139.6,139.54,6.00411335]
[1750977616044,7.16356801,139.6,139.55,6.00411335]
[1750977617664,7.16356801,139.6,139.54,6.00411335]
[1750977618370,18.64964886,139.59,139.51,89.4]
[1750977618554,18.64964886,139.59,139.52,6.00411335]
[1750977619855,7.16435019,139.58,139.52,6.00411335]
[1750977621361,7.16435019,139.58,139.54,6.00411335]
[1750977621537,7.16435019,139.58,139.55,6.00411335]
[1750977621945,7.16435019,139.58,139.54,6.00411335]
[1750977622462,7.8469,139.61,139.56,6.00411335]
[1750977623661,7.16357592,139.6,139.56,6.00411335]
[1750977625356,15.00996093,139.61,139.56,6.00411335]
[1750977630133,18.64964886,139.6,139.53,6.00411335]
[1750977630341,18.64964886,139.6,139.52,95.40411335]
[1750977630955,23.95484209,139.6,139.52,95.40411335]
[1750977631482,23.95484209,139.6,139.52,89.4]
[1750977631657,0.42648471,139.59,139.51,12.42411335]
[1750977631975,7.16435019,139.58,139.51,12.42411335]
[1750977632346,25.07522567,139.58,139.51,12.42411335]
[1750977632550,7.8701,139.56,139.49,89.4]
[1750977632771,7.8701,139.56,139.49,6.00411335]
[1750977633069,7.8701,139.56,139.48,115.42]
[1750977633070,7.8701,139.56,139.51,6.00411335]
[1750977634068,7.16589036,139.55,139.51,6.00411335]
[1750977637376,15.03557835,139.56,139.51,6.00411335]
[1750977639766,15.03557835,139.56,139.52,6.00411335]
[1750977640760,18.64964886,139.58,139.53,6.00411335]
[1750977640968,7.16449732,139.58,139.54,6.00411335]
[1750977642576,15.23779911,139.59,139.56,6.00411335]
[1750977642779,18.933972,139.62,139.57,6.00411335]
[1750977643084,18.64964886,139.62,139.58,6.00411335]
[1750977643765,7.16229766,139.62,139.58,6.00411335]
[1750977643961,7.16229766,139.62,139.59,6.00411335]
[1750977644153,7.16229766,139.62,139.58,6.00411335]
[1750977644876,7.16229766,139.62,139.54,0.28432314]
[1750977645179,7.16229766,139.62,139.58,6.00411335]
[1750977646678,7.16229766,139.62,139.56,6.00411335]
[1750977646879,18.64964886,139.61,139.55,6.00411335]
[1750977647083,23.95523074,139.61,139.55,6.00411335]
[1750977647269,23.95523074,139.61,139.56,6.00411335]
[1750977647270,18.64964886,139.61,139.56,6.00411335]
[1750977648681,7.16332378,139.6,139.56,6.00411335]
[1750977649884,25.81245954,139.61,139.56,6.00411335]
[1750977650077,25.81245954,139.61,139.57,6.00411335]
[1750977650271,25.81245954,139.61,139.56,6.00411335]
[1750977653678,25.81245954,139.61,139.52,95.82]
[1750977653878,25.81245954,139.61,139.56,6.00411335]
[1750977655385,25.81245954,139.61,139.57,6.00411335]
[1750977655776,7.16281068,139.61,139.57,6.00411335]
[1750977655983,7.16252666,139.62,139.57,6.00411335]
[1750977656567,7.16252666,139.62,139.53,19.07613357]
[1750977656773,7.16252666,139.62,139.57,6.00411335]
[1750977660387,18.64964886,139.61,139.53,95.40411335]
[1750977660586,0.42648471,139.6,139.53,6.00411335]
[1750977661688,7.16383695,139.59,139.53,6.00411335]
[1750977663908,18.64964886,139.56,139.48,0.02]
[1750977664196,0.42648471,139.55,139.48,0.02]
[1750977665905,7.16640389,139.54,139.48,0.02]
[1750977666502,25.08241363,139.54,139.48,0.02]
[1750977668301,7.16640389,139.54,139.48,6.02411335]
[1750977669103,7.16640389,139.54,139.49,6.00411335]
[1750977670405,25.81552161,139.56,139.5,6.00411335]
[1750977670710,25.81552161,139.56,139.51,6.00411335]
[1750977671535,25.81552161,139.56,139.5,6.00411335]
[1750977676817,25.81552161,139.56,139.49,6.00411335]
[1750977680718,25.81552161,139.56,139.5,6.00411335]
[1750977683616,0.42648471,139.55,139.48,0.02]
[1750977684203,0.42648471,139.55,139.48,6.02411335]
[1750977685092,7.16640389,139.54,139.48,6.02411335]
[1750977689929,7.16640389,139.54,139.49,6.00411335]
[1750977690609,7.16640389,139.54,139.48,6.02411335]
[1750977691513,7.16640389,139.54,139.48,0.02]
[1750977692724,7.16640389,139.54,139.48,6.02411335]
[1750977701564,7.16640389,139.54,139.48,0.02]
[1750977709137,7.16640389,139.54,139.48,6.02411335]
[1750977711224,7.16640389,139.54,139.48,0.02]
[1750977714541,18.64964886,139.53,139.48,0.02]
[1750977714731,8.0242,139.52,139.48,0.02]
[1750977716628,7.16794495,139.51,139.48,0.02]
[1750977718532,15.19189442,139.52,139.48,0.02]
[1750977718924,15.19189442,139.52,139.48,6.02411335]
[1750977718925,7.16769442,139.52,139.48,6.02411335]
[1750977720050,25.81605275,139.54,139.48,6.02411335]
[1750977720853,25.81605275,139.54,139.48,0.02]
[1750977721031,31.11306284,139.54,139.48,0.02]
[1750977721350,5.29701009,139.53,139.48,0.02]
[1750977722037,6.0033,139.51,139.48,0.02]
[1750977722241,18.64964886,139.49,139.48,0.02]
[1750977722642,19.07613357,139.49,139.48,0.02]
[1750977722848,26.24510625,139.49,139.48,0.02]
[1750977723360,25.81862154,139.49,139.48,0.02]
[1750977723661,7.16897268,139.49,139.48,0.02]
[1750977724727,14.01928634,139.5,139.48,0.02]
[1750977724929,1.5482,139.5,139.48,0.02]
[1750977725150,18.47382639,139.51,139.48,0.02]
[1750977725151,6.0033,139.51,139.48,0.02]
[1750977725356,13.1713213,139.51,139.48,0.02]
[1750977728764,7.1680213,139.51,139.48,0.02]
[1750977730139,13.54765554,139.52,139.48,0.02]
[1750977731359,13.54765554,139.52,139.48,6.02411335]
[1750977733465,6.38,139.52,139.48,6.02411335]
[1750977733650,13.73105798,139.54,139.49,6.00411335]
[1750977734869,7.16655798,139.54,139.49,6.00411335]
[1750977739567,7.16655798,139.54,139.48,6.02411335]
[1750977740181,7.16655798,139.54,139.49,6.00411335]
[1750977741553,7.16655798,139.54,139.5,6.00411335]
[1750977742081,7.16655798,139.54,139.49,6.00411335]
[1750977750304,7.16655798,139.54,139.49,3.87326485]
[1750977750986,7.16655798,139.54,139.48,0.02]
[1750977751192,7.16655798,139.54,139.48,3.89326485]
[1750977751580,7.16655798,139.54,139.48,0.02]
[1750977751793,19.07613357,139.53,139.48,0.02]
[1750977752899,7.16743119,139.52,139.48,0.02]
[1750977759799,25.81656636,139.53,139.48,0.02]
[1750977761110,7.1669175,139.53,139.49,6.05450759]
[1750977762502,7.1669175,139.53,139.48,6.07450759]
[1750977763102,7.16640389,139.54,139.48,6.07450759]
[1750977766318,7.16640389,139.54,139.49,6.05450759]
[1750977767417,13.32288471,139.57,139.5,6.05450759]
[1750977767600,18.64964886,139.56,139.51,6.05450759]
[1750977768714,18.64964886,139.56,139.5,6.05450759]
[1750977769013,25.81544003,139.56,139.5,6.05450759]
[1750977769218,31.11173402,139.56,139.5,6.05450759]
[1750977770114,25.81544003,139.56,139.5,6.05450759]
[1750977770319,25.81544003,139.56,139.51,6.05450759]
[1750977772319,12.46222222,139.57,139.54,6.05450759]
[1750977772497,1.6253,139.59,139.54,6.05450759]
[1750977772498,7.16446154,139.58,139.54,6.05450759]
[1750977772898,7.16446154,139.58,139.53,6.05450759]
[1750977775630,7.16446154,139.58,139.54,6.05450759]
[1750977776311,7.16446154,139.58,139.54,3.87035702]
[1750977777716,8.78935657,139.59,139.54,3.87035702]
[1750977778431,8.78935657,139.59,139.54,6.04742629]
[1750977779717,8.78935657,139.59,139.55,6.04742629]
[1750977780225,13.54357317,139.6,139.55,6.04742629]
[1750977780424,0.04,139.6,139.58,6.04742629]
[1750977780841,0.04,139.6,139.56,6.04742629]
[1750977781245,0.04,139.6,139.51,25.13181043]
[1750977781246,0.14216157,139.59,139.51,89.4]
[1750977781544,19.07613357,139.59,139.53,6.04742629]
[1750977781714,19.07613357,139.59,139.52,6.04742629]
[1750977782210,19.07613357,139.59,139.5,116.972]
[1750977782544,19.07613357,139.59,139.51,6.04742629]
[1750977783051,19.07613357,139.59,139.52,6.04742629]
[1750977783417,7.16435019,139.58,139.52,6.04742629]
[1750977783719,18.64964886,139.57,139.51,6.04742629]
[1750977784443,18.64964886,139.55,139.48,0.02]
[1750977785645,18.64964886,139.55,139.48,6.06742629]
[1750977785646,7.16640389,139.54,139.48,6.06742629]
[1750977786007,18.64964886,139.53,139.48,0.02]
[1750977787132,7.16743119,139.52,139.48,0.02]
[1750977793744,8.79153119,139.52,139.48,0.02]
[1750977800034,7.16743119,139.52,139.48,0.02]
[1750977800236,7.16743119,139.52,139.48,6.06742629]
[1750977800735,7.16743119,139.52,139.48,0.02]
[1750977806752,6.32,139.55,139.49,6.04742629]
[1750977806956,1.6096,139.56,139.52,6.04742629]
[1750977807152,18.64964886,139.57,139.52,6.04742629]
[1750977807359,6.3989,139.59,139.48,91.0814]
[1750977807360,6.3989,139.59,139.53,6.04742629]
[1750977807653,6.3989,139.59,139.54,6.04742629]
[1750977808535,7.16467516,139.58,139.54,6.04742629]
[1750977808860,7.16467516,139.58,139.53,6.04742629]
[1750977810350,7.16467516,139.58,139.54,6.04742629]
[1750977810736,7.16467516,139.58,139.53,6.04742629]
[1750977811335,7.16467516,139.58,139.49,89.68432314]
[1750977811539,18.64964886,139.57,139.5,6.04742629]
[1750977811742,18.64964886,139.57,139.48,6.36]
[1750977811743,19.07613357,139.55,139.48,6.36]
[1750977812041,18.64964886,139.55,139.5,6.04742629]
[1750977812742,7.16640389,139.54,139.5,6.04742629]
[1750977815056,7.16640389,139.54,139.49,6.04742629]
[1750977820488,7.16640389,139.54,139.5,6.04742629]
[1750977822386,7.16640389,139.54,139.48,0.02]
[1750977822587,13.35670389,139.54,139.48,0.02]
[1750977822772,18.64964886,139.53,139.48,0.02]
[1750977823481,0.14216157,139.52,139.48,0.02]
[1750977823678,0.42648471,139.52,139.48,0.02]
[1750977824585,7.16794495,139.51,139.48,0.02]
[1750977827191,36.56792767,139.53,139.48,0.02]
[1750977827192,7.16743119,139.52,139.48,0.02]
[1750977827984,20.64823357,139.51,139.48,0.02]
[1750977828276,20.22174886,139.51,139.48,0.02]
[1750977829406,7.16845878,139.5,139.48,0.02]
[1750977831707,19.07613357,139.49,139.48,0.02]
[1750977831892,25.61163357,139.49,139.47,0.02]
[1750977832094,20.58003357,139.48,139.44,0.02]
[1750977833487,19.07613357,139.46,139.44,0.02]
[1750977835583,25.8206779,139.45,139.44,0.02]
[1750977836178,7.17102904,139.45,139.44,0.02]
[1750977839597,7.59751375,139.45,139.44,0.02]
[1750977841612,7.59751375,139.45,139.43,0.02]
[1750977841906,56.14503357,139.44,139.43,0.02]
[1750977842485,63.31657688,139.44,139.43,0.02]
[1750977843403,19.07613357,139.43,139.42,0.02]
[1750977843707,0.42648471,139.42,139.38,1.0669251]
[1750977844001,18.64964886,139.4,139.38,1.0669251]
[1750977844580,25.82376465,139.39,139.38,1.0669251]
[1750977845581,18.64964886,139.42,139.38,1.0669251]
[1750977845785,25.82222094,139.42,139.38,1.10636775]
[1750977846196,0.42648471,139.41,139.38,1.10636775]
[1750977846814,7.17360114,139.4,139.38,1.10636775]
[1750977847099,0.42648471,139.41,139.38,1.10636775]
[1750977847100,7.17325131,139.41,139.38,1.10636775]
[1750977847609,25.82238526,139.42,139.38,1.10636775]
[1750977851014,0.42648471,139.43,139.38,1.10636775]
[1750977851015,7.1722289,139.43,139.38,7.15379404]
[1750977851596,7.1722289,139.43,139.38,1.10636775]
[1750977851795,7.1722289,139.43,139.38,7.15379404]
[1750977855612,7.1722289,139.43,139.38,1.10636775]
[1750977855819,7.1722289,139.43,139.38,7.15379404]
[1750977856616,7.1722289,139.43,139.38,1.10636775]
[1750977856817,7.1722289,139.43,139.38,7.15379404]
[1750977857896,25.82139546,139.44,139.4,6.04742629]
[1750977858096,51.59286295,139.45,139.38,1.10636775]
[1750977858421,51.59286295,139.45,139.39,6.04742629]
[1750977859004,0.42648471,139.43,139.38,1.10636775]
[1750977860116,7.17257208,139.42,139.38,1.10636775]
[1750977861217,7.17257208,139.42,139.38,7.15379404]
[1750977862805,7.17257208,139.42,139.38,1.10636775]
[1750977863000,7.17257208,139.42,139.38,7.15379404]
[1750977863205,7.17257208,139.42,139.38,1.10636775]
[1750977865028,18.64964886,139.41,139.38,1.10636775]
[1750977866023,7.17360114,139.4,139.38,1.10636775]
[1750977866335,18.64964886,139.39,139.38,1.10636775]
[1750977868114,7.17411579,139.39,139.38,1.10636775]
[1750977870637,29.34,139.41,139.38,1.10636775]
[1750977870826,36.51333451,139.41,139.38,1.10636775]
[1750977871033,7.17333451,139.41,139.38,1.10636775]
[1750977871944,18.64964886,139.4,139.38,1.10636775]
[1750977873028,7.17411579,139.39,139.38,1.10636775]
[1750977875349,7.6006005,139.39,139.38,1.10636775]
[1750977876545,26.25024936,139.39,139.38,1.10636775]
[1750977876918,32.57024936,139.39,139.38,1.10636775]
[1750977877117,32.57024936,139.39,139.38,1.0669251]
[1750977879750,32.14376465,139.39,139.38,1.0669251]
[1750977881633,32.57024936,139.39,139.38,1.0669251]
[1750977882030,37.83716244,139.39,139.38,1.0669251]
[1750977882347,37.9498494,139.39,139.38,1.0669251]
[1750977883137,67.2898494,139.39,139.38,1.0669251]
[1750977884329,67.2898494,139.39,139.32,0.02]
[1750977884330,19.94153357,139.38,139.32,0.02]
[1750977884533,19.07613357,139.36,139.32,0.02]
[1750977884732,19.07613357,139.34,139.32,0.02]
[1750977884937,54.73613357,139.33,139.32,0.02]
[1750977885137,54.73613357,139.33,139.22,1.6283]
[1750977885138,0.42648471,139.32,139.22,1.6283]
[1750977885328,53.69754351,139.32,139.26,6.04742629]
[1750977885658,48.00964886,139.32,139.28,6.04742629]
[1750977885958,18.64964886,139.32,139.28,1.6283]
[1750977886131,18.64964886,139.32,139.28,7.67572629]
[1750977886333,24.96964886,139.33,139.28,7.67572629]
[1750977886657,6.32,139.33,139.28,1.6283]
[1750977886848,10.92770004,139.34,139.28,7.67572629]
[1750977887037,10.92770004,139.34,139.33,6.04742629]
[1750977888631,10.92770004,139.34,139.29,7.00442662]
[1750977888835,10.92770004,139.34,139.33,6.04742629]
[1750977890953,10.92770004,139.34,139.33,7.58702629]
[1750977897129,10.92770004,139.34,139.33,1.5396]
[1750977898742,18.10439015,139.34,139.33,1.5396]
[1750977899050,18.10439015,139.34,139.3,1.6304]
[1750977901865,18.10439015,139.34,139.27,33.59852629]
[1750977902047,18.10439015,139.34,139.27,27.5511]
[1750977902248,18.64964886,139.33,139.27,1.5511]
[1750977902984,7.17772035,139.32,139.27,1.5511]
[1750977903755,7.17772035,139.32,139.27,7.59852629]
[1750977904648,7.17772035,139.32,139.28,6.04742629]
[1750977905578,7.17720519,139.33,139.28,6.04742629]
[1750977906555,7.17669011,139.34,139.28,6.04742629]
[1750977906952,7.17669011,139.34,139.27,7.59852629]
[1750977907171,7.17669011,139.34,139.28,6.04742629]
[1750977907588,7.17669011,139.34,139.29,6.04742629]
[1750977910663,7.17669011,139.34,139.3,6.04742629]
[1750977911806,25.11498031,139.36,139.3,6.04742629]
[1750977915285,25.11498031,139.36,139.27,90.9511]
[1750977915492,25.11498031,139.36,139.3,6.04742629]
[1750977916691,7.17566016,139.36,139.32,6.04742629]
[1750977919368,10.36353516,139.37,139.32,6.04742629]
[1750977919665,3.18819999,139.37,139.33,6.04742629]
[1750977919892,10.36338074,139.37,139.33,6.04742629]
[1750977921392,10.36338074,139.37,139.32,6.04742629]
[1750977921787,3.18819999,139.37,139.33,6.04742629]
[1750977922291,3.18819999,139.37,139.34,6.04742629]
[1750977922868,3.18819999,139.37,139.36,6.04742629]
[1750977924501,3.18819999,139.37,139.36,6.473911]
[1750977924900,0.04,139.4,139.36,6.473911]
[1750977925100,0.04,139.4,139.39,6.04742629]
[1750977925480,0.04,139.4,139.37,1.6407]
[1750977925681,0.04,139.4,139.39,6.04742629]
[1750977926884,0.04,139.4,139.37,1.6407]
[1750977926885,0.04,139.4,139.38,6.04742629]
[1750977927103,0.04,139.4,139.37,7.68812629]
[1750977928106,0.04,139.4,139.39,6.04742629]
[1750977929495,0.04,139.4,139.37,1.6407]
[1750977929699,0.04,139.4,139.38,6.04742629]
[1750977930610,0.04,139.4,139.37,7.68812629]
[1750977930914,0.04,139.4,139.36,89.4]
[1750977931084,0.04,139.4,139.35,32.04742629]
[1750977931702,0.04,139.4,139.36,6.04742629]
[1750977932389,0.04,139.4,139.37,6.04742629]
[1750977932590,0.04,139.4,139.38,6.04742629]
[1750977934285,0.04,139.4,139.36,26.0]
[1750977934503,0.04,139.4,139.36,32.04742629]
[1750977939108,0.04,139.4,139.37,6.04742629]
[1750977939704,0.04,139.4,139.38,6.04742629]
[1750977940207,0.04,139.4,139.39,6.04742629]
[1750977941897,0.04,139.4,139.36,115.4]
[1750977941898,0.04,139.4,139.38,6.04742629]
[1750977944110,0.04,139.4,139.39,6.04742629]
[1750977948025,0.04,139.4,139.39,6.473911]
[1750977948997,0.04,139.4,139.39,95.873911]
[1750977949193,0.04,139.4,139.39,114.52355986]
[1750977949418,0.04,139.4,139.39,25.12355986]
[1750977954130,0.04,139.43,139.4,0.42648471]
[1750977954434,0.04,139.43,139.42,6.04742629]
[1750977954798,0.04,139.43,139.42,6.473911]
[1750977955219,0.04,139.43,139.42,25.12355986]
[1750977955419,0.04,139.43,139.42,25.84081706]
[1750977956415,0.04,139.43,139.42,59.01338914]
[1750977960437,0.04,139.46,139.45,26.42648471]
[1750977960627,0.04,139.46,139.45,32.473911]
[1750977962234,0.04,139.48,139.45,58.2945889]
[1750977962413,0.04,139.51,139.48,26.28432314]
[1750977962617,0.04,139.51,139.5,6.04742629]
[1750977963326,0.04,139.51,139.45,89.4]
[1750977963631,0.04,139.51,139.47,6.04742629]
[1750977963822,0.04,139.51,139.48,6.04742629]
[1750977964345,0.04,139.51,139.5,6.04742629]
[1750977966036,0.04,139.51,139.46,0.71705148]
[1750977966205,0.04,139.51,139.48,6.04742629]
[1750977968049,0.04,139.51,139.49,6.04742629]
[1750977969206,0.04,139.51,139.5,6.04742629]
[1750977976631,0.04,139.51,139.5,6.33174943]
[1750977976924,0.04,139.51,139.48,115.4]
[1750977977144,0.04,139.51,139.5,6.04742629]
[1750977978357,0.04,139.51,139.48,121.44742629]
[1750977979641,0.04,139.51,139.48,32.04742629]
[1750977980140,0.04,139.51,139.49,6.04742629]
[1750977983724,0.04,139.51,139.48,32.04742629]
[1750977984943,0.04,139.51,139.49,6.04742629]
[1750977986642,0.04,139.51,139.5,6.04742629]
[1750977996369,0.04,139.51,139.48,89.4]
[1750977996746,0.04,139.51,139.48,95.44742629]
[1750977997263,0.04,139.51,139.48,6.04742629]
[1750977999835,0.04,139.51,139.46,115.54216157]
[1750978000031,0.04,139.51,139.48,6.04742629]
[1750978002064,0.04,139.51,139.49,6.04742629]
[1750978005765,0.04,139.51,139.48,6.04742629]
[1750978006765,0.04,139.51,139.46,115.54216157]
[1750978006958,0.04,139.51,139.48,6.04742629]
[1750978014149,0.04,139.51,139.46,121.44742629]
[1750978014968,7.20794495,139.51,139.46,95.44742629]
[1750978015172,7.20794495,139.51,139.44,26.0]
[1750978015376,7.20794495,139.51,139.44,6.04742629]
[1750978015673,25.12780732,139.51,139.44,6.04742629]
[1750978016561,25.12780732,139.51,139.45,6.04742629]
[1750978017450,25.12780732,139.51,139.44,6.04742629]
[1750978022469,25.12780732,139.51,139.43,0.02]
[1750978022661,25.12780732,139.51,139.44,6.04742629]
[1750978025190,25.12780732,139.51,139.45,6.04742629]
[1750978026077,7.20794495,139.51,139.47,6.04742629]
[1750978029180,0.04,139.51,139.47,6.04742629]
[1750978030301,0.04,139.51,139.48,6.04742629]
[1750978032596,0.04,139.51,139.46,26.0]
[1750978032898,0.04,139.51,139.47,6.04742629]
[1750978033595,0.04,139.51,139.46,6.04742629]
[1750978035993,48.02964886,139.51,139.44,89.4]
[1750978036201,48.02964886,139.51,139.43,0.02]
[1750978037582,48.02964886,139.51,139.43,6.06742629]
[1750978037793,48.02964886,139.51,139.44,6.04742629]
[1750978037794,29.38,139.51,139.44,6.04742629]
[1750978037978,34.6595401,139.51,139.44,6.04742629]
[1750978038284,7.2081205,139.51,139.46,6.04742629]
[1750978038673,7.2081205,139.51,139.47,6.04742629]
[1750978039994,7.2081205,139.51,139.46,6.04742629]
[1750978043608,0.42648471,139.49,139.43,0.02]
[1750978043974,1.6062,139.48,139.43,0.02]
[1750978044487,7.17000071,139.47,139.43,0.02]
[1750978051305,1.6062,139.48,139.44,6.04742629]
[1750978051491,17.96003504,139.51,139.45,6.04742629]
[1750978051492,0.04,139.51,139.45,6.04742629]